Workbook

Sheet Factor Data (hidden)
A1: Entry Count | B1: 3
A2: Next Available ID | B2: 16
A4: ID | B4: 11
A5: IsActive | B5: TRUE
A6: NodeID | B6: 40
A7: ArcID | B7: 55
A8: fNodeCopyID
A9: RootNodeID | B9: 40
A10: FactorName | B10: Mortality
A11: IsHidden | B11: FALSE
A13: ID | B13: 14
A14: IsActive | B14: TRUE
A15: NodeID | B15: 55 | C15: 56
A16: ArcID | B16: 73 | C16: 74
A17: fNodeCopyID
A18: RootNodeID | B18: 55
A19: FactorName | B19: Dis
A20: IsHidden | B20: FALSE
A22: ID | B22: 15
A23: IsActive | B23: TRUE
A24: NodeID | B24: 57 | C24: 58 | D24: 59 | E24: 60 | F24: 61 | G24: 62
A25: ArcID | B25: 75 | C25: 76 | D25: 77 | E25: 78 | F25: 79 | G25: 80 | H25: 81
A26: fNodeCopyID | B26: 13 | C26: 14
A27: RootNodeID | B27: 57
A28: FactorName | B28: Test
A29: IsHidden | B29: FALSE

Sheet Node Data (hidden)
A1: Entry Count | B1: 9
A2: Next Available ID | B2: 63
A4: ID | B4: 40
A5: nParentFactorID | B5: 11
A6: NodeCopyID
A7: PredecessorArcID
A8: SuccessorArcID | B8: 55
A9: QualityFactor | B9: 1
A10: CostFactor | B10: 0
A11: IsKeyNode | B11: FALSE
A12: NodeName | B12: Alive
A13: Rounded | B13: TRUE
A14: nTriggerID
A16: ID | B16: 55
A17: nParentFactorID | B17: 14
A18: NodeCopyID
A19: PredecessorArcID
A20: SuccessorArcID | B20: 73
A21: QualityFactor | B21: 1
A22: CostFactor | B22: 0
A23: IsKeyNode | B23: FALSE
A24: NodeName | B24: Healthy
A25: Rounded | B25: TRUE
A26: nTriggerID
A28: ID | B28: 56
A29: nParentFactorID | B29: 14
A30: NodeCopyID
A31: PredecessorArcID | B31: 73
A32: SuccessorArcID | B32: 74
A33: QualityFactor | B33: ID 9
A34: CostFactor | B34: 0
A35: IsKeyNode | B35: FALSE
A36: NodeName | B36: Disease
A37: Rounded | B37: TRUE
A38: nTriggerID
A40: ID | B40: 57
A41: nParentFactorID | B41: 15
A42: NodeCopyID | B42: 13 | C42: 14
A43: PredecessorArcID
A44: SuccessorArcID | B44: 75
A45: QualityFactor | B45: 1
A46: CostFactor | B46: 0
A47: IsKeyNode | B47: FALSE
A48: NodeName | B48: Wait
A49: Rounded | B49: TRUE
A50: nTriggerID
A52: ID | B52: 58
A53: nParentFactorID | B53: 15
A54: NodeCopyID
A55: PredecessorArcID | B55: 75
A56: SuccessorArcID | B56: 78 | C56: 76
A57: QualityFactor | B57: 1
A58: CostFactor | B58: 0
A59: IsKeyNode | B59: FALSE
A60: NodeName | B60: Test
A61: Rounded | B61: TRUE
A62: nTriggerID
A64: ID | B64: 59
A65: nParentFactorID | B65: 15
A66: NodeCopyID
A67: PredecessorArcID | B67: 76
A68: SuccessorArcID | B68: 77
A69: QualityFactor | B69: 1
A70: CostFactor | B70: 0
A71: IsKeyNode | B71: FALSE
A72: NodeName | B72: Negative
A73: Rounded | B73: TRUE
A74: nTriggerID
A76: ID | B76: 60
A77: nParentFactorID | B77: 15
A78: NodeCopyID
A79: PredecessorArcID | B79: 78
A80: SuccessorArcID | B80: 81 | C80: 79
A81: QualityFactor | B81: 1
A82: CostFactor | B82: 0
A83: IsKeyNode | B83: FALSE
A84: NodeName | B84: Positive
A85: Rounded | B85: TRUE
A86: nTriggerID
A88: ID | B88: 61
A89: nParentFactorID | B89: 15
A90: NodeCopyID
A91: PredecessorArcID | B91: 79
A92: SuccessorArcID | B92: 80
A93: QualityFactor | B93: 1
A94: CostFactor | B94: 0
A95: IsKeyNode | B95: FALSE
A96: NodeName | B96: False
A97: Rounded | B97: TRUE
A98: nTriggerID
A100: ID | B100: 62
A101: nParentFactorID | B101: 15
A102: NodeCopyID
A103: PredecessorArcID | B103: 81
A104: SuccessorArcID
A105: QualityFactor | B105: 1
A106: CostFactor | B106: 0
A107: IsKeyNode | B107: FALSE
A108: NodeName | B108: Detected
A109: Rounded | B109: TRUE
A110: nTriggerID

Sheet Arc Data (hidden)
A1: Entry Count | B1: 10
A2: Next Available ID | B2: 82
A4: ID | B4: 55
A5: aParentFactorID | B5: 11
A6: Stochastic | B6: TRUE
A7: Orientation | B7: 3.141592741
A8: PredecessorNodeID | B8: 40
A9: SuccessorNodeID | B9: 0
A10: SuccessorNodeCopyID | B10: 0
A11: TriggerID
A12: RateProb | B12: rMortUS(Age+_t,Sex)
A13: QualityToll | B13: 0
A14: CostToll | B14: 0
A16: ID | B16: 73
A17: aParentFactorID | B17: 14
A18: Stochastic | B18: TRUE
A19: Orientation | B19: 3.141592741
A20: PredecessorNodeID | B20: 55
A21: SuccessorNodeID | B21: 56
A22: SuccessorNodeCopyID | B22: 0
A23: TriggerID
A24: RateProb | B24: rDis
A25: QualityToll | B25: 0
A26: CostToll | B26: 0
A28: ID | B28: 74
A29: aParentFactorID | B29: 14
A30: Stochastic | B30: TRUE
A31: Orientation | B31: 3.141592741
A32: PredecessorNodeID | B32: 56
A33: SuccessorNodeID | B33: 0
A34: SuccessorNodeCopyID | B34: 0
A35: TriggerID
A36: RateProb | B36: mDis
A37: QualityToll | B37: 0
A38: CostToll | B38: 0
A40: ID | B40: 75
A41: aParentFactorID | B41: 15
A42: Stochastic | B42: TRUE
A43: Orientation | B43: 3.141592741
A44: PredecessorNodeID | B44: 57
A45: SuccessorNodeID | B45: 58
A46: SuccessorNodeCopyID | B46: 0
A47: TriggerID
A48: RateProb | B48: Spike_(tInc)
A49: QualityToll | B49: 0
A50: CostToll | B50: 0
A52: ID | B52: 76
A53: aParentFactorID | B53: 15
A54: Stochastic | B54: FALSE
A55: Orientation | B55: 3.141592741
A56: PredecessorNodeID | B56: 58
A57: SuccessorNodeID | B57: 59
A58: SuccessorNodeCopyID | B58: 0
A59: TriggerID
A60: RateProb | B60: ID 4
A61: QualityToll | B61: 0
A62: CostToll | B62: 0
A64: ID | B64: 77
A65: aParentFactorID | B65: 15
A66: Stochastic | B66: FALSE
A67: Orientation | B67: 3.141592741
A68: PredecessorNodeID | B68: 59
A69: SuccessorNodeID | B69: 57
A70: SuccessorNodeCopyID | B70: 13
A71: TriggerID
A72: RateProb | B72: 1
A73: QualityToll | B73: 0
A74: CostToll | B74: 0
A76: ID | B76: 78
A77: aParentFactorID | B77: 15
A78: Stochastic | B78: FALSE
A79: Orientation | B79: 3.141592741
A80: PredecessorNodeID | B80: 58
A81: SuccessorNodeID | B81: 60
A82: SuccessorNodeCopyID | B82: 0
A83: TriggerID
A84: RateProb | B84: ID 3
A85: QualityToll | B85: 0
A86: CostToll | B86: 0
A88: ID | B88: 79
A89: aParentFactorID | B89: 15
A90: Stochastic | B90: FALSE
A91: Orientation | B91: 3.141592741
A92: PredecessorNodeID | B92: 60
A93: SuccessorNodeID | B93: 61
A94: SuccessorNodeCopyID | B94: 0
A95: TriggerID
A96: RateProb | B96: ID 6
A97: QualityToll | B97: tFP
A98: CostToll | B98: 0
A100: ID | B100: 80
A101: aParentFactorID | B101: 15
A102: Stochastic | B102: FALSE
A103: Orientation | B103: 3.141592741
A104: PredecessorNodeID | B104: 61
A105: SuccessorNodeID | B105: 57
A106: SuccessorNodeCopyID | B106: 14
A107: TriggerID
A108: RateProb | B108: 1
A109: QualityToll | B109: 0
A110: CostToll | B110: 0
A112: ID | B112: 81
A113: aParentFactorID | B113: 15
A114: Stochastic | B114: FALSE
A115: Orientation | B115: 3.141592741
A116: PredecessorNodeID | B116: 60
A117: SuccessorNodeID | B117: 62
A118: SuccessorNodeCopyID | B118: 0
A119: TriggerID
A120: RateProb | B120: ID 5
A121: QualityToll | B121: 0
A122: CostToll | B122: 0

Sheet NodeCopy Data (hidden)
A1: Entry Count | B1: 2
A2: Next Available ID | B2: 15
A4: ID | B4: 13
A5: ncParentFactorID | B5: 15
A6: NodeOriginalID | B6: 57
A7: cPredecessorArcID | B7: 77
A9: ID | B9: 14
A10: ncParentFactorID | B10: 15
A11: NodeOriginalID | B11: 57
A12: cPredecessorArcID | B12: 80

Sheet _Cohort
A2: Cycle Time = | B2: 0.1
A3: Start Time = | B3: 0
A4: Time Horizon = | B4: 20
A5: Discount Rate = | B5: =_DiscountRate -> 0.03
D6: Dis: | E6: Healthy | F6: Disease | G6: Disease | H6: Terminal Node
D7: Test: | E7: Wait | F7: Wait | G7: Detected
D8: Mortality: | E8: Alive | F8: Alive | G8: Alive
D9: Chance/Decision? | E9: 0 | F9: 0 | G9: 0
D11: Initial Cohort = | E11: 1
D13: Time | E13: Counts
D14: =IF(_R,_tI,IF(_t>_tF,_tNw,D21)) -> 1.6 | E14: =IF(_R,E11,IF(_tNw>=_tF,E14,E21)) -> 0.8464100281 | F14: =IF(_R,F11,IF(_tNw>=_tF,F14,F21)) -> 0.05151023631 | G14: =IF(_R,G11,IF(_tNw>=_tF,G14,G21)) -> 0.07495188958 | H14: =IF(_R,H11,IF(_tNw>=_tF,H14,H21)) -> 0.02712784603 | I14: =(SUMPRODUCT(E9:I9,E14:I14) > 0) -> FALSE
C15: Transition Counts: | D15: Healthy / Wait / Alive | E15: =[1]!xPr([1]!Spike_(tInc)*_dT)*((1-spec)+spec) -> 0
D16: Disease / Wait / Alive | E16: =[1]!xPr(rDis*_dT) -> 0.009950166251 | F16: =[1]!xPr([1]!Spike_(tInc)*_dT)*(1-sens) -> 0
D17: Disease / Detected / Alive | F17: =[1]!xPr([1]!Spike_(tInc)*_dT)*sens -> 0
D18: Terminal Node | E18: =[1]!xPr([1]!rMortUS(Age+_t,Sex)*_dT) -> 0.0004409688188 | F18: =[1]!xPr((mDis+[1]!rMortUS(Age+_t,Sex))*_dT) -> 0.02023356374 | G18: =[1]!xPr((mDis+[1]!rMortUS(Age+_t,Sex))*_dT) -> 0.02023356374
D19: Entering Counts | E19: =SUMPRODUCT(_tR,E15:H15) -> 0 | F19: =SUMPRODUCT(_tR,E16:H16) -> 0.008421920496 | G19: =SUMPRODUCT(_tR,E17:H17) -> 0 | H19: =SUMPRODUCT(_tR,E18:H18) -> 0.002932019916
D20: Departing Counts | E20: =IF(_CD=1,E14,E14*SUM(E15:E18)) -> 0.008795160926 | F20: =IF(_CD=1,F14,F14*SUM(F15:F18)) -> 0.00104223565 | G20: =IF(_CD=1,G14,G14*SUM(G15:G18)) -> 0.001516543836 | H20: =IF(_CD=1,H14,H14*SUM(H15:H18)) -> 0
D21: =IF(_CP,D14,D14+_dT) -> 1.7 | E21: =E14+E19-E20 -> 0.8376148671 | F21: =F14+F19-F20 -> 0.05888992116 | G21: =G14+G19-G20 -> 0.07343534575 | H21: =H14+H19-H20 -> 0.03005986595
D23: Quality Coefficients (at t): | E23: =1 -> 1 | F23: =qDisUndetected -> 0.7 | G23: =qDisDetected -> 0.9
D24: (at t+dt): | E24: =EXP(-_dR*_dT) -> 0.9970044955 | F24: =qDisUndetected*EXP(-_dR*_dT) -> 0.6979031469 | G24: =qDisDetected*EXP(-_dR*_dT) -> 0.897304046
C26: Transition QALY Tolls: | D26: Disease / Wait / Alive | E26: =0 -> 0
D27: Healthy / Test / Alive | E27: =[1]!xPr([1]!Spike_(tInc)*_dT)*(1-spec)*tFP -> 0
D28: Disease / Test / Alive | F28: =0 -> 0
D29: Terminal Node | E29: =0 -> 0 | F29: =0 -> 0 | G29: =0 -> 0
D30: Incremental QALY Tolls: | E30: =IF(_t>_tF,0,_tR*SUM(E26:E29)) -> 0 | F30: =IF(_t>_tF,0,_tR*SUM(F26:F29)) -> 0 | G30: =IF(_t>_tF,0,_tR*SUM(G26:G29)) -> 0
D31: Incremental QALYs: | E31: =IF(_t>_tF,0,IF(_CP,0,_dT/2*(E23*E14+E24*E21))) -> 0.08407579081 | F31: =IF(_t>_tF,0,IF(_CP,0,_dT/2*(F23*F14+F24*F21))) -> 0.003857831336 | G31: =IF(_t>_tF,0,IF(_CP,0,_dT/2*(G23*G14+G24*G21))) -> 0.006667526674
D32: Incremental Total: | E32: =E31-E30 -> 0.08407579081 | F32: =F31-F30 -> 0.003857831336 | G32: =G31-G30 -> 0.006667526674
D33: Cum Discounted QALYs: | E33: =IF(_R,E32,IF(_t>=_tF,E33,E33+E32*EXP(-_dR*_t))) -> 1.494907764 | F33: =IF(_R,F32,IF(_t>=_tF,F33,F33+F32*EXP(-_dR*_t))) -> 0.04019685494 | G33: =IF(_R,G32,IF(_t>=_tF,G33,G33+G32*EXP(-_dR*_t))) -> 0.05513704911
D34: Overall Cum QALYs = | E34: =SUM(E33:G33) -> 1.590241668
D36: Cost Coefficients (at t): | E36: =0 -> 0 | F36: =0 -> 0 | G36: =0 -> 0
D37: (at t+dt): | E37: =0 -> 0 | F37: =0 -> 0 | G37: =0 -> 0
C39: Transition Cost Tolls: | D39: Disease / Wait / Alive
D40: Healthy / Test / Alive
D41: Disease / Test / Alive
D42: Terminal Node
D43: Incremental Cost Tolls:
D44: Incremental Costs:
D45: Incremental Total:
D46: Cum Discounted Costs:
D47: Overall Cum Costs =

Sheet Sheet5
A1: Dive Idx | B1: Instig Factor | C1: RateProb | D1: Q Toll | E1: C Toll | F1: From ProDID / To ProdID
A2: 1 | B2: Dis | C2: rDis | D2: 0 | F2: Healthy | G2: Alive | H2: Wait | I2: Disease | J2: Alive | K2: Wait
B3: Mortality | C3: GmpHR(Age+_t,Sex) | D3: 0 | I3: Terminal Node
A5: 2 | B5: Dis | C5: mDis | D5: 0 | F5: Disease | G5: Alive | H5: Wait | I5: Terminal Node
B6: Mortality | C6: GmpHR(Age+_t,Sex) | D6: 0 | I6: Terminal Node
B7: Test | C7: Spike_(tInc)*sens | D7: 0 | I7: Disease | J7: Alive | K7: Detected
A9: 3 | B9: Dis | C9: rDis | D9: 0 | F9: Healthy | G9: Alive | H9: Detected | I9: Disease | J9: Alive | K9: Detected
B10: Mortality | C10: GmpHR(Age+_t,Sex) | D10: 0 | I10: Terminal Node
A12: 4 | B12: Dis | C12: mDis | D12: 0 | F12: Disease | G12: Alive | H12: Detected | I12: Terminal Node
B13: Mortality | C13: GmpHR(Age+_t,Sex) | D13: 0 | I13: Terminal Node

Sheet Dependency Data (hidden)
A1: Entry Count | B1: 6
A2: Next Available ID | B2: 10
A4: ID | B4: 2
A5: IfFactorID | B5: **Deleted**
A6: StateID
A7: ThenD | B7: rPE_W | C7: rPE_No | D7: rPE_No
A9: ID | B9: 3
A10: IfFactorID | B10: 14
A11: StateID | B11: 56 | C11: 55
A12: ThenD | B12: sens | C12: 1-spec
A14: ID | B14: 4
A15: IfFactorID | B15: 14
A16: StateID | B16: 56 | C16: 55
A17: ThenD | B17: 1-sens | C17: spec
A19: ID | B19: 5
A20: IfFactorID | B20: 14
A21: StateID | B21: 56 | C21: 55
A22: ThenD | B22: 1 | C22: 0
A24: ID | B24: 6
A25: IfFactorID | B25: 14
A26: StateID | B26: 56 | C26: 55
A27: ThenD | B27: 0 | C27: 1
A29: ID | B29: 9
A30: IfFactorID | B30: 15
A31: StateID | B31: 62 | C31: 57
A32: ThenD | B32: qDisDetected | C32: qDisUndetected

Sheet Trigger Data (hidden)
A1: Entry Count | B1: 0
A2: Next Available ID | B2: 3

Sheet _Lookup (hidden)
A1: Next Available Dive Index | B1: 6
A2: Begin Table | B2: 5
A3: End Table | B3: 11
A5: Lexicographic Node Index | B5: Dive Index
A6: 1 | B6: 1
A7: 2 | B7: 2
A8: 7 | B8: 3
A9: 8 | B9: 4
A10: 12 | B10: 5

Sheet Dis
E12: rDis = | F12: 0.1 | G12: disease incidence (/yr)
E13: mDis = | F13: 0.2 | G13: disease mortality (/yr)
E15: qDisDetected = | F15: 0.9 | G15: Quality of life under detected (and therefore treated) disease
E16: qDisUndetected = | F16: 0.7 | G16: Quality of life under undetected disease

Sheet Test
E18: tInc = | F18: 2 | G18: the test interval (yr)
E19: sens = | F19: 0.9 | G19: sensitivity
E20: spec = | F20: 0.9 | G20: specificity
E21: tFP = | F21: =1/12 -> 0.08333333333 | G21: toll for false positive test (yr)

Sheet Mortality
E3: Age = | F3: 50
E4: Sex = | F4: Male

Sheet Sheet2
